[Event "Early-Titled-Tuesday-Blitz-April-23-2024"]
[Site "Chess.com"]
[Date "2024.04.23"]
[Round "6"]
[White "only_strong_moves"]
[Black "WilsonPalencia21"]
[Result "1/2-1/2"]
[WhiteElo "2702"]
[BlackElo "2551"]
[TimeControl "180+1"]
[EndTime "9:09:42 PDT"]
[Termination "Game drawn - insufficient material"]

1. e4 {[%clk 0:02:52]} 1... c5 {[%clk 0:02:59.8]} 2. Nf3 {[%clk 0:02:50.8]} 2...
d6 {[%clk 0:03:00.2]} 3. Bb5+ {[%clk 0:02:48]} 3... Nd7 {[%clk 0:02:49]} 4. Ba4
{[%clk 0:02:47.6]} 4... a6 {[%clk 0:02:45]} 5. c3 {[%clk 0:02:47.2]} 5... Nf6
{[%clk 0:02:43.2]} 6. Bc2 {[%clk 0:02:46.2]} 6... e5 {[%clk 0:02:38.2]} 7. O-O
{[%clk 0:02:46.2]} 7... Qc7 {[%clk 0:02:37.1]} 8. d4 {[%clk 0:02:46.4]} 8... Be7
{[%clk 0:02:35.9]} 9. Re1 {[%clk 0:02:42]} 9... h6 {[%clk 0:02:27.8]} 10. Nh4
{[%clk 0:02:41.1]} 10... cxd4 {[%clk 0:02:24.8]} 11. cxd4 {[%clk 0:02:41.3]}
11... Nf8 {[%clk 0:02:19]} 12. Nc3 {[%clk 0:02:31.3]} 12... Bg4 {[%clk 0:02:04]}
13. f3 {[%clk 0:02:26.9]} 13... Be6 {[%clk 0:01:53.8]} 14. Nf5 {[%clk
0:02:26.4]} 14... Bxf5 {[%clk 0:01:49.8]} 15. exf5 {[%clk 0:02:27.3]} 15... N8d7
{[%clk 0:01:45.1]} 16. Be3 {[%clk 0:02:24.4]} 16... O-O {[%clk 0:01:42.7]} 17.
Qd2 {[%clk 0:02:25.1]} 17... Rfe8 {[%clk 0:01:42.4]} 18. Rac1 {[%clk 0:02:22.9]}
18... Bf8 {[%clk 0:01:40.7]} 19. Kh1 {[%clk 0:02:21.6]} 19... exd4 {[%clk
0:00:57.4]} 20. Qxd4 {[%clk 0:02:15.3]} 20... Qa5 {[%clk 0:00:51.9]} 21. Bb3
{[%clk 0:02:14.1]} 21... Qxf5 {[%clk 0:00:49.5]} 22. Nd5 {[%clk 0:02:03.9]}
22... Nxd5 {[%clk 0:00:44.4]} 23. Bxd5 {[%clk 0:02:03]} 23... Nc5 {[%clk
0:00:30.3]} 24. b4 {[%clk 0:01:56.5]} 24... Ne6 {[%clk 0:00:30.4]} 25. Qd2
{[%clk 0:01:54.5]} 25... Rab8 {[%clk 0:00:26.6]} 26. a4 {[%clk 0:01:50.7]} 26...
Rec8 {[%clk 0:00:20.2]} 27. Rxc8 {[%clk 0:01:34.7]} 27... Rxc8 {[%clk
0:00:20.3]} 28. Bxb7 {[%clk 0:01:35.6]} 28... Rc2 {[%clk 0:00:20.3]} 29. Qd1
{[%clk 0:01:36.3]} 29... Rb2 {[%clk 0:00:19.7]} 30. Be4 {[%clk 0:01:19.1]} 30...
Qh5 {[%clk 0:00:18.5]} 31. Bd2 {[%clk 0:01:10.5]} 31... Ng5 {[%clk 0:00:16.8]}
32. Bd5 {[%clk 0:01:00.6]} 32... Nh3 {[%clk 0:00:12.2]} 33. gxh3 {[%clk
0:00:58.9]} 33... Qxd5 {[%clk 0:00:12.1]} 34. Bc3 {[%clk 0:00:49.9]} 34... Qxd1
{[%clk 0:00:11.3]} 35. Rxd1 {[%clk 0:00:50.8]} 35... Rb3 {[%clk 0:00:12]} 36.
Be1 {[%clk 0:00:44.1]} 36... Rxf3 {[%clk 0:00:10.9]} 37. Rb1 {[%clk 0:00:44.3]}
37... Ra3 {[%clk 0:00:10.5]} 38. b5 {[%clk 0:00:44.7]} 38... axb5 {[%clk
0:00:10.6]} 39. axb5 {[%clk 0:00:45.6]} 39... Ra7 {[%clk 0:00:10.3]} 40. b6
{[%clk 0:00:46.3]} 40... Rb7 {[%clk 0:00:10.8]} 41. Rb5 {[%clk 0:00:44.9]} 41...
Be7 {[%clk 0:00:10.5]} 42. Kg2 {[%clk 0:00:44.6]} 42... Kf8 {[%clk 0:00:11]} 43.
Bf2 {[%clk 0:00:44.7]} 43... Ke8 {[%clk 0:00:11.2]} 44. Kf3 {[%clk 0:00:45.4]}
44... Kd7 {[%clk 0:00:11.6]} 45. Ke4 {[%clk 0:00:46]} 45... Kc6 {[%clk
0:00:12.1]} 46. Rb3 {[%clk 0:00:45.5]} 46... g6 {[%clk 0:00:12.3]} 47. Rf3
{[%clk 0:00:42.7]} 47... f5+ {[%clk 0:00:11.6]} 48. Kd3 {[%clk 0:00:43.2]} 48...
Bd8 {[%clk 0:00:10.9]} 49. Rg3 {[%clk 0:00:42.4]} 49... g5 {[%clk 0:00:11.3]}
50. Rf3 {[%clk 0:00:38.4]} 50... f4 {[%clk 0:00:11.6]} 51. Ke4 {[%clk
0:00:35.1]} 51... Bxb6 {[%clk 0:00:11.7]} 52. Rc3+ {[%clk 0:00:35.7]} 52... Bc5
{[%clk 0:00:12.2]} 53. Kf5 {[%clk 0:00:34.5]} 53... Kd7 {[%clk 0:00:10.4]} 54.
Bxc5 {[%clk 0:00:34]} 54... Rb5 {[%clk 0:00:10.6]} 55. Kg6 {[%clk 0:00:32.8]}
55... Rxc5 {[%clk 0:00:11]} 56. Rd3 {[%clk 0:00:33.4]} 56... Rc2 {[%clk
0:00:10.4]} 57. Kxh6 {[%clk 0:00:33]} 57... Rc5 {[%clk 0:00:08.8]} 58. Kh5
{[%clk 0:00:32.7]} 58... Rf5 {[%clk 0:00:08.2]} 59. Kg4 {[%clk 0:00:33.1]} 59...
Re5 {[%clk 0:00:07.2]} 60. h4 {[%clk 0:00:32.5]} 60... gxh4 {[%clk 0:00:04.3]}
61. Kxf4 {[%clk 0:00:33.4]} 61... h3 {[%clk 0:00:04.1]} 62. Kg4 {[%clk
0:00:32.7]} 62... Re2 {[%clk 0:00:03.2]} 63. Kxh3 {[%clk 0:00:32.9]} 63... Ke6
{[%clk 0:00:03.8]} 64. Kg4 {[%clk 0:00:33.3]} 64... d5 {[%clk 0:00:04.3]} 65. h4
{[%clk 0:00:33.3]} 65... Ke5 {[%clk 0:00:05]} 66. h5 {[%clk 0:00:31.5]} 66...
Ke4 {[%clk 0:00:05.6]} 67. Rh3 {[%clk 0:00:30]} 67... Rg2+ {[%clk 0:00:05.1]}
68. Kh4 {[%clk 0:00:29.5]} 68... Rg8 {[%clk 0:00:06]} 69. h6 {[%clk 0:00:29.5]}
69... d4 {[%clk 0:00:06]} 70. h7 {[%clk 0:00:29]} 70... Rh8 {[%clk 0:00:06.1]}
71. Kg5 {[%clk 0:00:29.4]} 71... d3 {[%clk 0:00:06.2]} 72. Kg6 {[%clk
0:00:29.4]} 72... d2 {[%clk 0:00:05.2]} 73. Rh1 {[%clk 0:00:29.8]} 73... Rxh7
{[%clk 0:00:04.5]} 74. Kxh7 {[%clk 0:00:29.7]} 74... Ke3 {[%clk 0:00:05.1]} 75.
Kg6 {[%clk 0:00:29.9]} 75... Ke2 {[%clk 0:00:05.6]} 76. Rh2+ {[%clk 0:00:29.9]}
76... Ke1 {[%clk 0:00:05.8]} 77. Kf5 {[%clk 0:00:28.7]} 77... d1=Q {[%clk
0:00:05.7]} 78. Rh1+ {[%clk 0:00:29.2]} 78... Ke2 {[%clk 0:00:05.9]} 79. Rxd1
{[%clk 0:00:30.1]} 79... Kxd1 {[%clk 0:00:06.6]} 1/2-1/2

[Event "Early-Titled-Tuesday-Blitz-April-23-2024"]
[Site "Chess.com"]
[Date "2024.04.23"]
[Round "6"]
[White "Bada_norovsambuu"]
[Black "N_I_Chess"]
[Result "1-0"]
[WhiteElo "2237"]
[BlackElo "2370"]
[TimeControl "180+1"]
[EndTime "9:09:44 PDT"]
[Termination "Bada_norovsambuu won on time"]

1. Nf3 {[%clk 0:03:00.9]} 1... Nf6 {[%clk 0:02:48.6]} 2. d4 {[%clk 0:03:00.7]}
2... d5 {[%clk 0:02:43.9]} 3. c4 {[%clk 0:02:59.8]} 3... e6 {[%clk 0:02:27]} 4.
g3 {[%clk 0:02:59.1]} 4... dxc4 {[%clk 0:02:15.6]} 5. Bg2 {[%clk 0:02:58.7]}
5... Nc6 {[%clk 0:01:53.4]} 6. O-O {[%clk 0:02:53.4]} 6... Bd6 {[%clk
0:01:51.7]} 7. Nbd2 {[%clk 0:02:47.1]} 7... c3 {[%clk 0:01:22.1]} 8. bxc3 {[%clk
0:02:46.5]} 8... O-O {[%clk 0:01:22.4]} 9. e4 {[%clk 0:02:46.2]} 9... e5 {[%clk
0:01:22]} 10. Qc2 {[%clk 0:02:37.5]} 10... Bg4 {[%clk 0:01:20.5]} 11. h3 {[%clk
0:02:36.3]} 11... Bh5 {[%clk 0:01:19.3]} 12. d5 {[%clk 0:02:30.3]} 12... Nb8
{[%clk 0:01:10.7]} 13. c4 {[%clk 0:02:30.2]} 13... Nbd7 {[%clk 0:01:07.3]} 14.
Nb3 {[%clk 0:02:30.2]} 14... b6 {[%clk 0:01:06.5]} 15. Be3 {[%clk 0:02:30.2]}
15... Qe7 {[%clk 0:01:05.6]} 16. Rac1 {[%clk 0:02:28.2]} 16... Bg6 {[%clk
0:01:01.1]} 17. Nfd2 {[%clk 0:02:27.7]} 17... Nc5 {[%clk 0:01:01.1]} 18. Nxc5
{[%clk 0:02:22.1]} 18... Bxc5 {[%clk 0:01:02]} 19. Bxc5 {[%clk 0:02:21.7]} 19...
Qxc5 {[%clk 0:01:02.9]} 20. Nb3 {[%clk 0:02:21.2]} 20... Qd6 {[%clk 0:00:52.4]}
21. c5 {[%clk 0:02:20.3]} 21... bxc5 {[%clk 0:00:52.5]} 22. Nxc5 {[%clk
0:02:17.6]} 22... Rab8 {[%clk 0:00:27.3]} 23. Qc4 {[%clk 0:02:17.3]} 23... c6
{[%clk 0:00:22.8]} 24. Na6 {[%clk 0:01:37]} 24... cxd5 {[%clk 0:00:22]} 25. exd5
{[%clk 0:01:32.8]} 25... Rb6 {[%clk 0:00:21.7]} 26. Nc5 {[%clk 0:01:21.3]} 26...
Rc8 {[%clk 0:00:20.5]} 27. Rc3 {[%clk 0:00:53.7]} 27... h6 {[%clk 0:00:17.9]}
28. Rfc1 {[%clk 0:00:52.7]} 28... Nd7 {[%clk 0:00:14.1]} 29. Qg4 {[%clk
0:00:37.2]} 29... Rxc5 {[%clk 0:00:12.8]} 30. Rxc5 {[%clk 0:00:36.4]} 30... Nxc5
{[%clk 0:00:13.3]} 31. Qc8+ {[%clk 0:00:36.2]} 31... Kh7 {[%clk 0:00:13.9]} 32.
Qxc5 {[%clk 0:00:36]} 32... Bd3 {[%clk 0:00:11.6]} 33. Qxd6 {[%clk 0:00:33.9]}
33... Rxd6 {[%clk 0:00:12.5]} 34. Rc7 {[%clk 0:00:34.1]} 34... a6 {[%clk
0:00:10.6]} 35. Rxf7 {[%clk 0:00:33.7]} 35... e4 {[%clk 0:00:11]} 36. Re7 {[%clk
0:00:33.2]} 36... Rxd5 {[%clk 0:00:10.9]} 37. Bxe4+ {[%clk 0:00:32.7]} 37...
Bxe4 {[%clk 0:00:11.8]} 38. Rxe4 {[%clk 0:00:32.8]} 38... Ra5 {[%clk 0:00:11.8]}
39. a4 {[%clk 0:00:31.8]} 39... Kg6 {[%clk 0:00:09.6]} 40. Kg2 {[%clk
0:00:32.4]} 40... Kf6 {[%clk 0:00:09.9]} 41. Kf3 {[%clk 0:00:32.6]} 41... g6
{[%clk 0:00:10]} 42. Ke3 {[%clk 0:00:32.5]} 42... Rd5 {[%clk 0:00:10.1]} 43. Rd4
{[%clk 0:00:31.7]} 43... Re5+ {[%clk 0:00:10.2]} 44. Kd3 {[%clk 0:00:31.8]}
44... Ra5 {[%clk 0:00:09.9]} 45. f4 {[%clk 0:00:29.5]} 45... Ke6 {[%clk
0:00:09.8]} 46. Ke4 {[%clk 0:00:29.5]} 46... Rc5 {[%clk 0:00:09]} 47. Rb4 {[%clk
0:00:29.1]} 47... Rc6 {[%clk 0:00:08.4]} 48. a5 {[%clk 0:00:27.9]} 48... Kd7
{[%clk 0:00:07.4]} 49. g4 {[%clk 0:00:27.6]} 49... Rc5 {[%clk 0:00:06.6]} 50.
Rb7+ {[%clk 0:00:25.1]} 50... Ke8 {[%clk 0:00:01.9]} 51. Rb6 {[%clk 0:00:24]}
51... Rxa5 {[%clk 0:00:02.1]} 52. Rxg6 {[%clk 0:00:24.3]} 52... Ra3 {[%clk
0:00:02.3]} 53. Rxh6 {[%clk 0:00:23.6]} 53... a5 {[%clk 0:00:02.9]} 54. h4
{[%clk 0:00:23.9]} 54... a4 {[%clk 0:00:03.3]} 55. Ra6 {[%clk 0:00:24.5]} 55...
Ra1 {[%clk 0:00:03.5]} 56. Kf5 {[%clk 0:00:24.9]} 56... a3 {[%clk 0:00:03.6]}
57. h5 {[%clk 0:00:25.1]} 57... Kf7 {[%clk 0:00:04]} 58. Ra7+ {[%clk 0:00:24.2]}
58... Kg8 {[%clk 0:00:04.1]} 59. Kg6 {[%clk 0:00:23.1]} 59... Kf8 {[%clk
0:00:04.3]} 60. g5 {[%clk 0:00:22.8]} 60... Rg1 {[%clk 0:00:02.7]} 61. Rxa3
{[%clk 0:00:20.7]} 61... Rc1 {[%clk 0:00:03]} 62. f5 {[%clk 0:00:20.5]} 62...
Rc8 {[%clk 0:00:01.9]} 63. f6 {[%clk 0:00:20.4]} 63... Kg8 {[%clk 0:00:02.1]}
64. Ra7 {[%clk 0:00:19.8]} 64... Kh8 {[%clk 0:00:02.1]} 65. Kh6 {[%clk 0:00:20]}
1-0

[Event "Early-Titled-Tuesday-Blitz-April-23-2024"]
[Site "Chess.com"]
[Date "2024.04.23"]
[Round "6"]
[White "Baku_Boulevard"]
[Black "TanitoluwaAps116"]
[Result "1-0"]
[WhiteElo "3040"]
[BlackElo "2785"]
[TimeControl "180+1"]
[EndTime "9:09:45 PDT"]
[Termination "Baku_Boulevard won by checkmate"]

1. e4 {[%clk 0:03:00.9]} 1... c5 {[%clk 0:02:59.8]} 2. Nf3 {[%clk 0:03:00.3]}
2... e6 {[%clk 0:02:59.7]} 3. d4 {[%clk 0:03:00.6]} 3... cxd4 {[%clk 0:03:00.4]}
4. Nxd4 {[%clk 0:03:01.4]} 4... Nf6 {[%clk 0:03:01.1]} 5. Nc3 {[%clk 0:03:01.6]}
5... Nc6 {[%clk 0:03:01.6]} 6. Be2 {[%clk 0:03:01.5]} 6... Qc7 {[%clk
0:02:54.7]} 7. O-O {[%clk 0:03:00.9]} 7... a6 {[%clk 0:02:54.4]} 8. Be3 {[%clk
0:03:00.2]} 8... Be7 {[%clk 0:02:54.3]} 9. f4 {[%clk 0:03:00.4]} 9... d6 {[%clk
0:02:54.5]} 10. Kh1 {[%clk 0:02:59]} 10... O-O {[%clk 0:02:44.3]} 11. a4 {[%clk
0:02:58.6]} 11... Bd7 {[%clk 0:02:39.6]} 12. Bd3 {[%clk 0:02:58.1]} 12... Nxd4
{[%clk 0:02:24.7]} 13. Bxd4 {[%clk 0:02:58]} 13... Bc6 {[%clk 0:02:15.6]} 14. a5
{[%clk 0:02:53.9]} 14... Rac8 {[%clk 0:01:46.5]} 15. Qe1 {[%clk 0:02:52]} 15...
e5 {[%clk 0:01:14.6]} 16. Bb6 {[%clk 0:02:50.6]} 16... Qd7 {[%clk 0:01:09.6]}
17. Rd1 {[%clk 0:02:47.3]} 17... exf4 {[%clk 0:01:01.7]} 18. Rxf4 {[%clk
0:02:39.9]} 18... Qe6 {[%clk 0:00:58.2]} 19. Qf1 {[%clk 0:02:40]} 19... Ng4
{[%clk 0:00:35.2]} 20. Nd5 {[%clk 0:02:37.9]} 20... Bg5 {[%clk 0:00:21.3]} 21.
Rf5 {[%clk 0:02:30]} 21... Qh6 {[%clk 0:00:12.1]} 22. h3 {[%clk 0:02:27.1]}
22... Bxd5 {[%clk 0:00:08.8]} 23. Rxd5 {[%clk 0:02:23]} 23... Be3 {[%clk
0:00:05]} 24. Qf3 {[%clk 0:01:55.4]} 24... Nf2+ {[%clk 0:00:04.5]} 25. Qxf2
{[%clk 0:01:55.9]} 25... Bxf2 {[%clk 0:00:05.4]} 26. Bxf2 {[%clk 0:01:56.5]}
26... Rfe8 {[%clk 0:00:04.2]} 27. Bg3 {[%clk 0:01:56.7]} 27... Qf6 {[%clk
0:00:02.9]} 28. b3 {[%clk 0:01:56.3]} 28... Rc5 {[%clk 0:00:02.5]} 29. Rxd6
{[%clk 0:01:56.1]} 29... Qg5 {[%clk 0:00:02.5]} 30. Kh2 {[%clk 0:01:56.2]} 30...
h5 {[%clk 0:00:02.7]} 31. h4 {[%clk 0:01:55.8]} 31... Qg4 {[%clk 0:00:03.3]} 32.
Rf1 {[%clk 0:01:55.9]} 32... g5 {[%clk 0:00:02.7]} 33. Rf3 {[%clk 0:01:31.8]}
33... gxh4 {[%clk 0:00:03]} 34. Bf4 {[%clk 0:01:32.4]} 34... Rg5 {[%clk
0:00:02.3]} 35. Bxg5 {[%clk 0:01:32.3]} 35... Qxg5 {[%clk 0:00:03.2]} 36. Rd5
{[%clk 0:01:32.2]} 36... Re5 {[%clk 0:00:03]} 37. Rd7 {[%clk 0:01:31.7]} 37...
f6 {[%clk 0:00:02.4]} 38. Rxb7 {[%clk 0:01:16.3]} 38... Rxa5 {[%clk 0:00:02.3]}
39. Bc4+ {[%clk 0:01:12]} 39... Kh8 {[%clk 0:00:02.2]} 40. Re7 {[%clk
0:00:53.8]} 40... Re5 {[%clk 0:00:02.2]} 41. Rf7 {[%clk 0:00:49.8]} 41... Rxe4
{[%clk 0:00:02.1]} 42. R7xf6 {[%clk 0:00:50.3]} 42... Qe5+ {[%clk 0:00:02]} 43.
Kh1 {[%clk 0:00:49.3]} 43... Re1+ {[%clk 0:00:01.9]} 44. Bf1 {[%clk 0:00:49.7]}
44... Kg7 {[%clk 0:00:02.3]} 45. Rf7+ {[%clk 0:00:47.7]} 45... Kg6 {[%clk
0:00:03.2]} 46. Rf8 {[%clk 0:00:48.3]} 46... Kg7 {[%clk 0:00:03.3]} 47. R8f5
{[%clk 0:00:48.1]} 47... Qa1 {[%clk 0:00:02.2]} 48. Kh2 {[%clk 0:00:47.3]} 48...
Qd4 {[%clk 0:00:01.6]} 49. c3 {[%clk 0:00:43]} 49... Qd6+ {[%clk 0:00:01.8]} 50.
Kh1 {[%clk 0:00:41]} 50... Qb6 {[%clk 0:00:02.5]} 51. b4 {[%clk 0:00:37.5]}
51... h3 {[%clk 0:00:02.8]} 52. Rxh3 {[%clk 0:00:35.6]} 52... a5 {[%clk
0:00:02.7]} 53. bxa5 {[%clk 0:00:34.5]} 53... Qa6 {[%clk 0:00:02.8]} 54. Rhf3
{[%clk 0:00:34.6]} 54... Qd6 {[%clk 0:00:02.7]} 55. Kg1 {[%clk 0:00:26.2]} 55...
h4 {[%clk 0:00:01.8]} 56. Kh1 {[%clk 0:00:25.1]} 56... Kg6 {[%clk 0:00:02.1]}
57. R5f4 {[%clk 0:00:24.5]} 57... Kg5 {[%clk 0:00:02.2]} 58. Rf8 {[%clk
0:00:24.6]} 58... Kh6 {[%clk 0:00:01.9]} 59. R8f6+ {[%clk 0:00:24.6]} 59... Qxf6
{[%clk 0:00:01.3]} 60. Rxf6+ {[%clk 0:00:25.3]} 60... Kg5 {[%clk 0:00:02.2]} 61.
Rf3 {[%clk 0:00:25.9]} 61... Kg4 {[%clk 0:00:03.1]} 62. a6 {[%clk 0:00:25.9]}
62... Ra1 {[%clk 0:00:03.3]} 63. Kh2 {[%clk 0:00:25.9]} 63... Kg5 {[%clk
0:00:03.7]} 64. Rf8 {[%clk 0:00:24.7]} 64... Kg4 {[%clk 0:00:03.7]} 65. Ra8
{[%clk 0:00:24]} 65... h3 {[%clk 0:00:02.8]} 66. a7 {[%clk 0:00:23.3]} 66...
hxg2 {[%clk 0:00:02.4]} 67. Bxg2 {[%clk 0:00:22.3]} 67... Kh4 {[%clk 0:00:02.3]}
68. Rh8+ {[%clk 0:00:21.7]} 68... Kg4 {[%clk 0:00:02.3]} 69. a8=Q {[%clk
0:00:22]} 69... Ra5 {[%clk 0:00:01.3]} 70. Qxa5 {[%clk 0:00:19.6]} 70... Kf4
{[%clk 0:00:02.2]} 71. Qd5 {[%clk 0:00:16.1]} 71... Kg4 {[%clk 0:00:03.1]} 72.
Qc5 {[%clk 0:00:12.6]} 72... Kf4 {[%clk 0:00:03]} 73. Rh4# {[%clk 0:00:12.3]}
1-0

[Event "Early-Titled-Tuesday-Blitz-April-23-2024"]
[Site "Chess.com"]
[Date "2024.04.23"]
[Round "6"]
[White "Sofia_Blokhin"]
[Black "Schattman"]
[Result "1-0"]
[WhiteElo "2257"]
[BlackElo "2455"]
[TimeControl "180+1"]
[EndTime "9:09:45 PDT"]
[Termination "Sofia_Blokhin won on time"]

1. d4 {[%clk 0:03:00.9]} 1... d5 {[%clk 0:02:58.9]} 2. c4 {[%clk 0:03:00.5]}
2... e6 {[%clk 0:02:59.4]} 3. Nc3 {[%clk 0:03:00.3]} 3... Be7 {[%clk 0:03:00]}
4. cxd5 {[%clk 0:02:57.2]} 4... exd5 {[%clk 0:02:59.4]} 5. Bf4 {[%clk
0:02:56.5]} 5... c6 {[%clk 0:02:59.8]} 6. e3 {[%clk 0:02:56.6]} 6... Bd6 {[%clk
0:03:00.3]} 7. Bg3 {[%clk 0:02:51.7]} 7... Nf6 {[%clk 0:02:55.4]} 8. Bd3 {[%clk
0:02:50.6]} 8... O-O {[%clk 0:02:49.3]} 9. f4 {[%clk 0:02:45]} 9... Re8 {[%clk
0:02:45.1]} 10. Qd2 {[%clk 0:02:37.2]} 10... Ng4 {[%clk 0:02:44]} 11. Nd1 {[%clk
0:02:33]} 11... g5 {[%clk 0:02:28.7]} 12. Ne2 {[%clk 0:02:17.5]} 12... Qe7
{[%clk 0:02:13.3]} 13. fxg5 {[%clk 0:01:54.1]} 13... Bxg3+ {[%clk 0:02:09.3]}
14. Nxg3 {[%clk 0:01:37.2]} 14... Nxe3 {[%clk 0:02:09.1]} 15. Nxe3 {[%clk
0:01:36.5]} 15... Qxe3+ {[%clk 0:02:08.6]} 16. Qxe3 {[%clk 0:01:36.7]} 16...
Rxe3+ {[%clk 0:02:08.6]} 17. Kd2 {[%clk 0:01:37.3]} 17... Re8 {[%clk 0:01:49.7]}
18. Nh5 {[%clk 0:01:26.4]} 18... Nd7 {[%clk 0:01:44.1]} 19. Rae1 {[%clk
0:01:23.8]} 19... Rxe1 {[%clk 0:01:40.1]} 20. Rxe1 {[%clk 0:01:22.6]} 20... Kf8
{[%clk 0:01:37.2]} 21. Bxh7 {[%clk 0:01:16.3]} 21... Nb6 {[%clk 0:01:37.3]} 22.
Nf6 {[%clk 0:01:10.1]} 22... Nc4+ {[%clk 0:01:17.3]} 23. Kc3 {[%clk 0:01:09]}
23... Be6 {[%clk 0:01:11.7]} 24. h4 {[%clk 0:01:03.7]} 24... a5 {[%clk
0:01:11.3]} 25. h5 {[%clk 0:01:02.3]} 25... b5 {[%clk 0:01:09.8]} 26. b3 {[%clk
0:00:59.9]} 26... b4+ {[%clk 0:01:07.4]} 27. Kc2 {[%clk 0:00:58.6]} 27... Na3+
{[%clk 0:01:07.4]} 28. Kb2 {[%clk 0:00:57.9]} 28... Nb5 {[%clk 0:01:07.2]} 29.
h6 {[%clk 0:00:50.8]} 29... a4 {[%clk 0:01:06.8]} 30. g6 {[%clk 0:00:46.8]}
30... fxg6 {[%clk 0:00:47.5]} 31. Rxe6 {[%clk 0:00:44.9]} 31... Kf7 {[%clk
0:00:40.6]} 32. Rxc6 {[%clk 0:00:40.9]} 32... Nxd4 {[%clk 0:00:38.6]} 33. Rb6
{[%clk 0:00:37.5]} 33... a3+ {[%clk 0:00:31.3]} 34. Kb1 {[%clk 0:00:36.1]} 34...
Rc8 {[%clk 0:00:24.7]} 35. Nxd5 {[%clk 0:00:34.2]} 35... Rd8 {[%clk 0:00:04.2]}
36. Bxg6+ {[%clk 0:00:32.7]} 36... Kf8 {[%clk 0:00:04.6]} 37. h7 {[%clk
0:00:29.9]} 37... Kg7 {[%clk 0:00:04.1]} 38. Be4 {[%clk 0:00:25.8]} 38... Ne2
{[%clk 0:00:03.6]} 39. Rb7+ {[%clk 0:00:25]} 39... Kh8 {[%clk 0:00:02.7]} 40.
Rxb4 {[%clk 0:00:17]} 40... Ng3 {[%clk 0:00:02.2]} 41. Bf3 {[%clk 0:00:14.9]}
41... Re8 {[%clk 0:00:02.6]} 42. Kc2 {[%clk 0:00:13.3]} 42... Kxh7 {[%clk
0:00:02.4]} 43. Rb7+ {[%clk 0:00:12.2]} 43... Kh6 {[%clk 0:00:02.5]} 44. Ra7
{[%clk 0:00:12.4]} 44... Rc8+ {[%clk 0:00:02.4]} 45. Kd3 {[%clk 0:00:11.3]}
45... Nf5 {[%clk 0:00:03.3]} 46. Rxa3 {[%clk 0:00:09.8]} 46... Kg5 {[%clk
0:00:03.7]} 47. Ra6 {[%clk 0:00:09.2]} 47... Rd8 {[%clk 0:00:03.9]} 48. Kc4
{[%clk 0:00:08.5]} 48... Rc8+ {[%clk 0:00:03.8]} 49. Kd3 {[%clk 0:00:07.9]}
49... Rd8 {[%clk 0:00:03.8]} 50. b4 {[%clk 0:00:08.5]} 50... Rd7 {[%clk
0:00:04.2]} 51. b5 {[%clk 0:00:08.7]} 51... Rd6 {[%clk 0:00:04.4]} 52. Rxd6
{[%clk 0:00:08.2]} 52... Nxd6 {[%clk 0:00:05.3]} 53. b6 {[%clk 0:00:08.9]} 53...
Kf5 {[%clk 0:00:03.4]} 54. a4 {[%clk 0:00:09.3]} 54... Ke5 {[%clk 0:00:03.8]}
55. a5 {[%clk 0:00:09.6]} 55... Nb7 {[%clk 0:00:04.1]} 56. a6 {[%clk 0:00:09.4]}
56... Nc5+ {[%clk 0:00:04.3]} 57. Kc4 {[%clk 0:00:10.1]} 57... Nxa6 {[%clk
0:00:05.2]} 58. b7 {[%clk 0:00:09.5]} 58... Nb8 {[%clk 0:00:06.1]} 59. Kb5
{[%clk 0:00:09.7]} 59... Nd7 {[%clk 0:00:05.6]} 60. Kc6 {[%clk 0:00:09.8]} 60...
Nb8+ {[%clk 0:00:05]} 61. Kc7 {[%clk 0:00:10.2]} 61... Na6+ {[%clk 0:00:05.1]}
62. Kc8 {[%clk 0:00:10.8]} 62... Kd4 {[%clk 0:00:04.7]} 63. b8=Q {[%clk
0:00:10.9]} 63... Nxb8 {[%clk 0:00:05.3]} 64. Kxb8 {[%clk 0:00:11.8]} 64... Kd3
{[%clk 0:00:05.1]} 65. g4 {[%clk 0:00:11.6]} 65... Kd2 {[%clk 0:00:06]} 66. g5
{[%clk 0:00:12.2]} 66... Ke1 {[%clk 0:00:06.9]} 67. g6 {[%clk 0:00:13.1]} 67...
Kf2 {[%clk 0:00:07.8]} 68. g7 {[%clk 0:00:14]} 68... Kf1 {[%clk 0:00:08.7]} 69.
g8=Q {[%clk 0:00:13.9]} 69... Kf2 {[%clk 0:00:09.6]} 70. Qg2+ {[%clk 0:00:13.8]}
1-0